fUST/lending_fUST_20250223
["ID","MTS","AMOUNT","RATE_DAILY","PERIOD"]
[354139197,1740281433696,-1517.95,0.00014243,2]
[354139198,1740281433705,-8914.43,0.00014243,2]
[354139199,1740281433716,-500.0,0.00014244,2]
[354139200,1740281433725,-500.0,0.00014244,2]
[354139201,1740281433736,-500.0,0.00014244,2]
[354139202,1740281433746,-500.0,0.00014244,2]
[354139203,1740281433756,-500.0,0.00014244,2]
[354139204,1740281433766,-500.0,0.00014244,2]
[354139205,1740281433776,-500.0,0.00014244,2]
[354139206,1740281433786,-500.0,0.00014244,2]
[354139207,1740281433796,-500.0,0.00014244,2]
[354139208,1740281433806,-500.0,0.00014244,2]
[354139209,1740281433815,-500.0,0.00014244,2]
[354139210,1740281433825,-500.0,0.00014244,2]
[354139211,1740281433834,-500.0,0.00014244,2]
[354139212,1740281433844,-500.0,0.00014244,2]
[354139213,1740281433854,-500.0,0.00014244,2]
[354139214,1740281433863,-500.0,0.00014244,2]
[354139215,1740281433873,-500.0,0.00014244,2]
[354139216,1740281433882,-567.84,0.00014244,2]
[354139217,1740281433892,-500.0,0.00014244,2]
[354139218,1740281433902,-500.0,0.00014244,2]
[354139219,1740281433912,-500.0,0.00014244,2]
[354139220,1740281433921,-500.0,0.00014244,2]
[354139221,1740281433932,-500.0,0.00014244,2]
[354139222,1740281433941,-500.0,0.00014244,2]
[354139223,1740281433951,-500.0,0.00014244,2]
[354139224,1740281433960,-500.0,0.00014244,2]
[354139225,1740281433969,-500.0,0.00014244,2]
[354139226,1740281433979,-313.22969325,0.00014244,2]
[354139227,1740281433992,-500.0,0.00014244,2]
[354139228,1740281434002,-423.50431871,0.00014244,2]
[354139229,1740281434101,-3101.53568129,0.00014244,2]
[354139230,1740281434111,-500.0,0.00014244,2]
[354139231,1740281434120,-500.0,0.00014244,2]
[354139232,1740281434130,-500.0,0.00014244,2]
[354139233,1740281434140,-500.0,0.00014244,2]
[354139234,1740281434150,-1753.25,0.00014244,2]
[354139235,1740281434159,-500.0,0.00014244,2]
[354139236,1740281434168,-173.55971725,0.00014245,2]
[354139247,1740281440663,-500.0,0.00014161,2]
[354139248,1740281440673,-500.0,0.00014161,2]
[354139249,1740281440683,-500.0,0.00014243,2]
[354139250,1740281440692,-500.0,0.00014243,2]
[354139251,1740281440701,-326.44028275,0.00014245,2]
[354139252,1740281440711,-212.93320502,0.00014245,2]
[354139253,1740281440720,-500.0,0.00014245,2]
[354139254,1740281440730,-459.85319181,0.00014245,2]
[354139255,1740281440741,-858.12,0.00014245,2]
[354139256,1740281440750,-500.0,0.00014245,2]
[354139257,1740281440759,-500.0,0.00014245,2]
[354139258,1740281440769,-224.8062211,0.00014245,2]
[354139259,1740281440778,-500.0,0.00014245,2]
[354139260,1740281440787,-500.0,0.00014245,2]
[354139261,1740281440796,-500.0,0.00014245,2]
[354139262,1740281440805,-500.0,0.00014245,2]
[354139263,1740281440814,-500.0,0.00014245,2]
[354139264,1740281440823,-500.0,0.00014245,2]
[354139265,1740281440833,-500.0,0.00014245,2]
[354139266,1740281440842,-500.0,0.00014245,2]
[354139267,1740281440852,-509.53251834,0.00014245,2]
[354139268,1740281440861,-500.0,0.00014245,2]
[354139269,1740281440870,-500.0,0.00014245,2]
[354139270,1740281440880,-500.0,0.00014245,2]
[354139271,1740281440889,-1002.82834528,0.00014245,2]
[354139272,1740281440898,-500.0,0.00014245,2]
[354139273,1740281440908,-500.0,0.00014245,2]
[354139274,1740281440917,-500.0,0.00014245,2]
[354139275,1740281440926,-500.0,0.00014245,2]
[354139276,1740281440936,-500.0,0.00014245,2]
[354139277,1740281440945,-500.0,0.00014245,2]
[354139278,1740281440954,-500.0,0.00014245,2]
[354139279,1740281440964,-500.0,0.00014246,2]
[354139280,1740281440973,-500.0,0.00014246,2]
[354139281,1740281440983,-500.0,0.00014246,2]
[354139283,1740281440995,-596.67,0.00014326,2]
[354139285,1740281441005,-500.0,0.00014326,2]
[354139286,1740281441014,-667.28,0.00014326,2]
[354139287,1740281441023,-1292.2,0.00014326,2]
[354139289,1740281441033,-647.96,0.00014326,2]
[354139291,1740281441043,-500.0,0.00014326,2]
[354139293,1740281441052,-503.74,0.00014326,2]
[354139295,1740281441061,-500.0,0.00014326,2]
[354139297,1740281441071,-500.0,0.00014326,2]
[354139299,1740281441081,-500.0,0.00014326,2]
[354139301,1740281441090,-500.0,0.00014326,2]
[354139303,1740281441099,-500.0,0.00014326,2]
[354139305,1740281441108,-500.0,0.00014326,2]
[354139307,1740281441117,-500.0,0.00014326,2]
[354139309,1740281441126,-500.0,0.00014326,2]
[354139311,1740281441136,-518.85,0.00014326,2]
[354139313,1740281441145,-1175.31,0.00014326,2]
[354139315,1740281441154,-500.0,0.00014326,2]
[354139317,1740281441163,-500.0,0.00014326,2]
[354139319,1740281441172,-500.0,0.00014326,2]
[354139321,1740281441182,-904.02,0.00014326,2]
[354139323,1740281441191,-1517.95,0.00014326,2]
[354139326,1740281441202,-8914.43,0.00014326,2]
[354139328,1740281441211,-500.0,0.00014326,2]
[354139330,1740281441220,-500.0,0.00014327,2]
[354139332,1740281441230,-858.12,0.00014327,2]
[354139334,1740281441239,-500.0,0.00014327,2]
[354139336,1740281441248,-500.0,0.00014327,2]
[354139338,1740281441257,-500.0,0.00014327,2]
[354139340,1740281441266,-500.0,0.00014327,2]
[354139342,1740281441275,-500.0,0.00014327,2]
[354139344,1740281441285,-500.0,0.00014327,2]
[354139346,1740281441294,-500.0,0.00014327,2]
[354139348,1740281441303,-500.0,0.00014327,2]
[354139350,1740281441312,-500.0,0.00014327,2]
[354139352,1740281441321,-500.0,0.00014327,2]
[354139354,1740281441330,-166.6632514,0.00014327,2]
[354139356,1740281441339,-500.0,0.00014327,2]
[354139358,1740281441349,-500.0,0.00014327,2]
[354139360,1740281441359,-500.0,0.00014327,2]
[354139362,1740281441368,-500.0,0.00014327,2]
[354139364,1740281441377,-500.0,0.00014327,2]
[354139366,1740281441387,-500.0,0.00014327,2]
[354139368,1740281441396,-500.0,0.00014327,2]
[354139370,1740281441405,-500.0,0.00014327,2]
[354139372,1740281441414,-500.0,0.00014327,2]
[354139374,1740281441423,-185.16919088,0.00014327,2]
[354139376,1740281441432,-373.61986197,0.00014327,2]
[354139378,1740281441442,-510.20025937,0.00014327,2]
[354139380,1740281441452,-505.69988613,0.00014327,2]
[354139382,1740281441461,-500.0,0.00014327,2]
[354139384,1740281441470,-567.84,0.00014327,2]
[354139386,1740281441479,-500.0,0.00014327,2]
[354139388,1740281441488,-500.0,0.00014327,2]
[354139390,1740281441497,-500.0,0.00014327,2]
[354139392,1740281441506,-500.0,0.00014327,2]
[354139394,1740281441516,-500.0,0.00014327,2]
[354139396,1740281441525,-500.0,0.00014327,2]
[354139398,1740281441533,-500.0,0.00014327,2]
[354139400,1740281441543,-500.0,0.00014327,2]
[354139402,1740281441552,-500.0,0.00014327,2]
[354139404,1740281441561,-505.99557686,0.00014327,2]
[354139406,1740281441570,-500.0,0.00014327,2]
[354139408,1740281441579,-500.0,0.00014327,2]
[354139410,1740281441588,-500.0,0.00014327,2]
[354139412,1740281441597,-3525.04,0.00014327,2]
[354139414,1740281441606,-500.0,0.00014327,2]
[354139416,1740281441615,-500.0,0.00014327,2]
[354139418,1740281441624,-500.0,0.00014327,2]
[354139431,1740281441728,-500.0,0.00014327,2]
[354139433,1740281441738,-500.0,0.00014327,2]
[354139435,1740281441747,-1753.25,0.00014327,2]
[354139437,1740281441756,-500.0,0.00014327,2]
[354139439,1740281441766,-500.0,0.00014328,2]
[354139441,1740281441775,-500.0,0.00014328,2]
[354139443,1740281441784,-500.0,0.00014328,2]
[354139445,1740281441793,-500.0,0.00014328,2]
[354139447,1740281441802,-4032.9524177,0.0001433,5]
[354139449,1740281441811,-209.0499117,0.000144,2]
[354139451,1740281441820,-309.592814,0.000144,2]
[354139453,1740281441829,-153.0,0.000144,2]
[354139455,1740281441841,-153.0,0.000144,2]
[354139457,1740281441850,-596.67,0.00014408,2]
[354139459,1740281441859,-500.0,0.00014408,2]
[354139461,1740281441868,-667.28,0.00014408,2]
[354139463,1740281441878,-1292.2,0.00014408,2]
[354139465,1740281441887,-647.96,0.00014408,2]
[354139467,1740281441896,-500.0,0.00014408,2]
[354139469,1740281441906,-503.74,0.00014408,2]
[354139471,1740281441915,-500.0,0.00014408,2]
[354139474,1740281441933,-500.0,0.00014408,2]
[354139476,1740281441944,-500.0,0.00014408,2]
[354139479,1740281441955,-500.0,0.00014408,2]
[354139481,1740281441966,-500.0,0.00014408,2]
[354139483,1740281441978,-500.0,0.00014408,2]
[354139485,1740281441990,-500.0,0.00014408,2]
[354139487,1740281442000,-500.0,0.00014408,2]
[354139489,1740281442009,-518.85,0.00014408,2]
[354139491,1740281442019,-1175.31,0.00014408,2]
[354139493,1740281442029,-500.0,0.00014408,2]
[354139495,1740281442040,-500.0,0.00014408,2]
[354139497,1740281442051,-500.0,0.00014408,2]
[354139499,1740281442061,-904.02,0.00014408,2]
[354139501,1740281442071,-1517.95,0.00014408,2]
[354139503,1740281442081,-8914.43,0.00014408,2]
[354139504,1740281442090,-500.0,0.00014408,2]
[354139505,1740281442100,-500.0,0.00014409,2]
[354139506,1740281442109,-500.0,0.00014409,2]
[354139507,1740281442121,-333.19807125,0.00014409,2]
[354139508,1740281442130,-500.0,0.00014409,2]
[354139509,1740281442140,-500.0,0.00014409,2]
[354139510,1740281442149,-500.0,0.00014409,2]
[354139511,1740281442159,-500.0,0.00014409,2]
[354139512,1740281442168,-500.0,0.00014409,2]
[354139513,1740281442177,-500.0,0.00014409,2]
[354139514,1740281442186,-500.0,0.00014409,2]
[354139515,1740281442196,-500.0,0.00014409,2]
[354139516,1740281442206,-500.0,0.00014409,2]
[354139517,1740281442215,-500.0,0.00014409,2]
[354139518,1740281442224,-500.0,0.00014409,2]
[354139520,1740281442234,-567.84,0.00014409,2]
[354139522,1740281442243,-500.0,0.00014409,2]
[354139524,1740281442253,-273.93565896,0.00014409,2]
[354139526,1740281442262,-500.0,0.00014409,2]
[354139528,1740281442272,-427.62961432,0.00014409,2]
[354139530,1740281442282,-500.0,0.00014409,2]
[354139532,1740281442292,-500.0,0.00014409,2]
[354139534,1740281442301,-500.0,0.00014409,2]
[354139536,1740281442311,-500.0,0.00014409,2]
[354139538,1740281442320,-500.0,0.00014409,2]
[354139540,1740281442330,-438.45457882,0.00014409,2]
[354139542,1740281442339,-3525.04,0.00014409,2]
[354139544,1740281442349,-500.0,0.00014409,2]
[354139546,1740281442359,-152.94014112,0.00014409,2]
[354139548,1740281442369,-506.4215794,0.00014409,2]
[354139550,1740281442379,-579.15425206,0.00014409,2]
[354139552,1740281442388,-1753.25,0.00014409,2]
[354139554,1740281442397,-500.0,0.00014409,2]
[354139556,1740281442407,-500.0,0.0001441,2]
[354139558,1740281442416,-858.12,0.0001441,2]
[354139561,1740281442426,-500.0,0.0001441,2]
[354139563,1740281442436,-500.0,0.0001441,2]
[354139565,1740281442445,-500.0,0.0001441,2]
[354139567,1740281442455,-500.0,0.0001441,2]
[354139569,1740281442465,-514.88140452,0.0001441,2]
[354139571,1740281442474,-434.85758015,0.0001441,2]
[354139573,1740281442483,-500.0,0.0001441,2]
[354139575,1740281442493,-500.0,0.0001441,2]
[354139577,1740281442502,-500.0,0.0001441,2]
[354139579,1740281442511,-500.0,0.0001441,2]
[354139581,1740281442521,-500.0,0.0001441,2]
[354139583,1740281442530,-500.0,0.0001441,2]
[354139585,1740281442539,-505.25354362,0.00014473,2]
[354139587,1740281442548,-596.67,0.0001449,2]
[354139589,1740281442557,-500.0,0.0001449,2]
[354139591,1740281442566,-667.28,0.0001449,2]
[354139593,1740281442576,-1292.2,0.0001449,2]
[354139595,1740281442585,-647.96,0.0001449,2]
[354139597,1740281442594,-500.0,0.0001449,2]
[354139599,1740281442603,-503.74,0.0001449,2]
[354139601,1740281442613,-500.0,0.0001449,2]
[354139603,1740281442622,-500.0,0.0001449,2]
[354139605,1740281442632,-500.0,0.0001449,2]
[354139607,1740281442641,-500.0,0.0001449,2]
[354139609,1740281442650,-500.0,0.0001449,2]
[354139611,1740281442660,-315.8212098,0.0001449,2]
[354139613,1740281442669,-500.0,0.0001449,2]
[354139615,1740281442678,-500.0,0.0001449,2]
[354139617,1740281442688,-518.85,0.0001449,2]
[354139619,1740281442697,-1175.31,0.0001449,2]
[354139621,1740281442706,-500.0,0.0001449,2]
[354139623,1740281442715,-500.0,0.0001449,2]
[354139626,1740281442732,-500.0,0.0001449,2]
[354139628,1740281442746,-904.02,0.0001449,2]
[354139631,1740281442760,-1517.95,0.0001449,2]
[354139635,1740281442774,-8914.43,0.0001449,2]
[354139637,1740281442787,-500.0,0.0001449,2]
[354139639,1740281442797,-500.0,0.00014491,2]
[354139641,1740281442809,-500.0,0.00014491,2]
[354139646,1740281442822,-501.78076125,0.00014491,2]
[354139649,1740281442834,-500.0,0.00014491,2]
[354139652,1740281442847,-618.17619588,0.00014491,2]
[354139655,1740281442859,-174.89905902,0.00014491,2]
[354139657,1740281442871,-500.0,0.00014491,2]
[354139660,1740281442888,-577.19376363,0.00014491,2]
[354139662,1740281442901,-500.0,0.00014491,2]
[354139665,1740281442913,-371.56152268,0.00014491,2]
[354139667,1740281442925,-500.0,0.00014491,2]
[354139669,1740281442937,-500.0,0.00014491,2]
[354139672,1740281442950,-332.02882842,0.00014491,2]
[354139674,1740281442961,-500.0,0.00014491,2]
[354139676,1740281442973,-567.84,0.00014491,2]
[354139679,1740281442990,-500.0,0.00014491,2]
[354139681,1740281443002,-500.0,0.00014491,2]
[354139683,1740281443013,-500.0,0.00014491,2]
[354139686,1740281443026,-500.0,0.00014491,2]
[354139688,1740281443036,-500.0,0.00014491,2]
[354139691,1740281443047,-260.34266534,0.00014491,2]
[354139695,1740281443058,-500.0,0.00014491,2]
[354139697,1740281443070,-3525.04,0.00014491,2]
[354139699,1740281443085,-500.0,0.00014491,2]
[354139702,1740281443101,-1753.25,0.00014491,2]
[354139704,1740281443113,-500.0,0.00014491,2]
[354139706,1740281443125,-621.53231473,0.00014492,2]
[354139709,1740281443138,-858.12,0.00014492,2]
[354139711,1740281443152,-194.70671649,0.00014492,2]
[354139713,1740281443164,-313.18793951,0.00014492,2]
[354139716,1740281443176,-500.0,0.00014492,2]
[354139718,1740281443189,-500.0,0.00014492,2]
[354139720,1740281443201,-500.0,0.00014492,2]
[354139722,1740281443212,-500.0,0.00014492,2]
[354139725,1740281443223,-500.0,0.00014492,2]
[354139727,1740281443233,-500.0,0.00014492,2]
[354139729,1740281443243,-500.0,0.00014492,2]
[354139731,1740281443254,-500.0,0.00014492,2]
[354139733,1740281443266,-12924.89674434,0.00014532,2]
[354139736,1740281443280,-596.67,0.00014572,2]
[354139738,1740281443292,-500.0,0.00014572,2]
[354139740,1740281443303,-667.28,0.00014572,2]
[354139742,1740281443315,-1292.2,0.00014572,2]
[354139745,1740281443326,-647.96,0.00014572,2]
[354139747,1740281443338,-500.0,0.00014572,2]
[354139749,1740281443349,-503.74,0.00014572,2]
[354139751,1740281443360,-500.0,0.00014572,2]
[354139754,1740281443374,-500.0,0.00014572,2]
[354139756,1740281443387,-500.0,0.00014572,2]
[354139758,1740281443400,-500.0,0.00014572,2]
[354139761,1740281443411,-500.0,0.00014572,2]
[354139763,1740281443421,-386.64690722,0.00014572,2]
[354139765,1740281443431,-500.0,0.00014572,2]
[354139767,1740281443442,-518.85,0.00014572,2]
[354139769,1740281443455,-1175.31,0.00014572,2]
[354139771,1740281443466,-500.0,0.00014572,2]
[354139774,1740281443477,-500.0,0.00014572,2]
[354139776,1740281443487,-500.0,0.00014572,2]
[354139778,1740281443499,-904.02,0.00014572,2]
[354139780,1740281443510,-1517.95,0.00014572,2]
[354139782,1740281443521,-8914.43,0.00014572,2]
[354139785,1740281443532,-500.0,0.00014572,2]
[354139787,1740281443543,-620.1044048,0.00014573,2]
[354139789,1740281443554,-500.0,0.00014573,2]
[354139791,1740281443565,-500.0,0.00014573,2]
[354139793,1740281443577,-500.0,0.00014573,2]
[354139796,1740281443588,-500.0,0.00014573,2]
[354139798,1740281443599,-500.0,0.00014573,2]
[354139800,1740281443610,-500.0,0.00014573,2]
[354139802,1740281443621,-500.0,0.00014573,2]
[354139804,1740281443631,-567.84,0.00014573,2]
[354139807,1740281443643,-500.0,0.00014573,2]
[354139809,1740281443654,-198.17167666,0.00014573,2]
[354139811,1740281443665,-500.0,0.00014573,2]
[354139813,1740281443676,-500.0,0.00014573,2]
[354139815,1740281443687,-500.0,0.00014573,2]
[354139818,1740281443698,-500.0,0.00014573,2]
[354139820,1740281443708,-3525.04,0.00014573,2]
[354139822,1740281443720,-500.0,0.00014573,2]
[354139824,1740281443731,-1753.25,0.00014573,2]
[354139826,1740281443742,-500.0,0.00014573,2]
[354139828,1740281443753,-858.12,0.00014574,2]
[354139831,1740281443763,-500.0,0.00014574,2]
[354139833,1740281443774,-500.0,0.00014574,2]
[354139835,1740281443784,-500.0,0.00014574,2]
[354139837,1740281443795,-638.59621379,0.00014574,2]
[354139839,1740281443806,-501.32768621,0.00014574,2]
[354139841,1740281443816,-500.0,0.00014574,2]
[354139844,1740281443827,-519.32224101,0.00014574,2]
[354139846,1740281443838,-508.37962303,0.00014574,2]
[354139848,1740281443849,-153.0,0.000146,2]
[354139850,1740281443860,-154.796407,0.000146,2]
[354139853,1740281443872,-153.0,0.000146,2]
[354139855,1740281443883,-154.796407,0.000146,2]
[354139857,1740281443896,-153.0,0.000146,2]
[354139859,1740281443906,-358.7126771,0.000146,2]
[354139861,1740281443916,-153.0,0.000146,2]
[354139875,1740281444041,-153.0,0.000146,2]
[354139878,1740281444057,-154.796407,0.000146,2]
[354139880,1740281444069,-501.42897419,0.00014602,2]
[354139882,1740281444080,-596.67,0.00014654,2]
[354139884,1740281444089,-500.0,0.00014654,2]
[354139886,1740281444099,-667.28,0.00014654,2]
[354139888,1740281444108,-1292.2,0.00014654,2]
[354139890,1740281444118,-647.96,0.00014654,2]
[354139892,1740281444128,-500.0,0.00014654,2]
[354139894,1740281444138,-503.74,0.00014654,2]
[354139896,1740281444147,-500.0,0.00014654,2]
[354139898,1740281444157,-484.88257258,0.00014654,2]
[354139900,1740281444167,-500.0,0.00014654,2]
[354139902,1740281444178,-500.0,0.00014654,2]
[354139904,1740281444188,-540.80948961,0.00014654,2]
[354139906,1740281444198,-500.0,0.00014654,2]
[354139908,1740281444208,-518.85,0.00014654,2]
[354139910,1740281444217,-1175.31,0.00014654,2]
[354139912,1740281444227,-500.0,0.00014654,2]
[354139914,1740281444237,-221.97517115,0.00014654,2]
[354139917,1740281444246,-500.0,0.00014654,2]
[354139919,1740281444256,-904.02,0.00014654,2]
[354139921,1740281444265,-1517.95,0.00014654,2]
[354139923,1740281444274,-8914.43,0.00014654,2]
[354139924,1740281444283,-282.75378289,0.00014654,2]
[354139927,1740281444293,-500.0,0.00014654,2]
[354139928,1740281444302,-249.60907265,0.00014654,2]
[354139931,1740281444312,-500.0,0.00014655,2]
[354139933,1740281444322,-500.0,0.00014655,2]
[354139934,1740281444331,-500.0,0.00014655,2]
[354139937,1740281444341,-500.0,0.00014655,2]
[354139939,1740281444351,-500.0,0.00014655,2]
[354139941,1740281444361,-387.10845837,0.00014655,2]
[354139943,1740281444370,-500.0,0.00014655,2]
[354139945,1740281444379,-567.84,0.00014655,2]
[354139947,1740281444390,-500.0,0.00014655,2]
[354139949,1740281444399,-500.0,0.00014655,2]
[354139951,1740281444409,-500.0,0.00014655,2]
[354139953,1740281444419,-500.0,0.00014655,2]
[354139955,1740281444428,-208.06046797,0.00014655,2]
[354139957,1740281444437,-3525.04,0.00014655,2]
[354139959,1740281444446,-500.0,0.00014655,2]
[354139961,1740281444457,-1753.25,0.00014655,2]
[354139963,1740281444466,-500.0,0.00014655,2]
[354139965,1740281444476,-858.12,0.00014656,2]
[354139967,1740281444485,-500.0,0.00014656,2]
[354139969,1740281444494,-500.0,0.00014656,2]
[354139971,1740281444504,-500.0,0.00014656,2]
[354139973,1740281444513,-505.22082809,0.00014656,2]
[354139975,1740281444522,-219.0182236,0.00014697,2]
[354139977,1740281444531,-153.0,0.000147,2]
[354139979,1740281444542,-154.796407,0.000147,2]
[354139981,1740281444551,-153.0,0.000147,2]
[354139983,1740281444561,-153.0,0.000147,2]
[354139985,1740281444570,-557.2941539,0.000147,2]
[354139987,1740281444579,-153.0,0.000147,2]
[354139989,1740281444589,-217.6187688,0.000147,2]
[354139991,1740281444598,-153.0,0.000147,2]
[354139993,1740281444607,-153.0,0.000147,2]
[354139995,1740281444616,-154.796407,0.000147,2]
[354139997,1740281444625,-13279.54588923,0.0001473,2]
[354139999,1740281444634,-596.67,0.00014736,2]
[354140001,1740281444645,-500.0,0.00014736,2]
[354140003,1740281444654,-667.28,0.00014736,2]
[354140005,1740281444663,-1292.2,0.00014736,2]
[354140007,1740281444672,-647.96,0.00014736,2]
[354140009,1740281444682,-500.0,0.00014736,2]
[354140011,1740281444691,-503.74,0.00014736,2]
[354140013,1740281444701,-500.0,0.00014736,2]
[354140015,1740281444710,-500.0,0.00014736,2]
[354140017,1740281444719,-500.0,0.00014736,2]
[354140019,1740281444729,-500.0,0.00014736,2]
[354140021,1740281444738,-518.85,0.00014736,2]
[354140023,1740281444748,-1175.31,0.00014736,2]
[354140025,1740281444757,-500.0,0.00014736,2]
[354140027,1740281444766,-500.0,0.00014736,2]
[354140029,1740281444776,-904.02,0.00014736,2]
[354140031,1740281444785,-1517.95,0.00014736,2]
[354140033,1740281444795,-8914.43,0.00014736,2]
[354140035,1740281444804,-858.12,0.00014738,2]
[354140037,1740281444812,-188.69057534,0.00014738,2]
[354140039,1740281444821,-500.0,0.00014738,2]
[354140041,1740281444831,-500.0,0.00014738,2]
[354140043,1740281444840,-322.92142907,0.00014738,2]
[354140045,1740281444850,-500.0,0.00014738,2]
[354140047,1740281444859,-558.14935204,0.00014738,2]
[354140049,1740281444868,-397.07962336,0.00014738,2]
[354140051,1740281444878,-211.94418371,0.00014738,2]
[354140053,1740281444887,-567.84,0.00014738,2]
[354140055,1740281444897,-500.0,0.00014738,2]
[354140057,1740281444906,-500.0,0.00014738,2]
[354140059,1740281444915,-500.0,0.00014738,2]
[354140061,1740281444924,-500.0,0.00014738,2]
[354140063,1740281444933,-3525.04,0.00014738,2]
[354140065,1740281444943,-500.0,0.00014738,2]
[354140067,1740281444951,-1753.25,0.00014738,2]
[354140069,1740281444961,-500.0,0.00014738,2]
[354140071,1740281444970,-500.0,0.00014739,2]
[354140073,1740281444979,-622.1309853,0.00014773,2]
[354140075,1740281444991,-500.0,0.00014773,2]
[354140077,1740281445001,-500.0,0.00014773,2]
[354140079,1740281445010,-509.04158611,0.00014773,2]
[354140081,1740281445020,-500.0,0.00014773,2]
[354140083,1740281445030,-500.0,0.00014773,2]
[354140085,1740281445039,-171.12504259,0.00014773,2]
[354140087,1740281445049,-500.0,0.00014773,2]
[354140089,1740281445058,-500.0,0.00014773,2]
[354140091,1740281445069,-500.0,0.00014773,2]
[354140093,1740281445080,-500.78601293,0.00014773,2]
[354140095,1740281445090,-500.0,0.00014773,2]
[354140097,1740281445099,-156.90533495,0.00014773,2]
[354140099,1740281445109,-500.0,0.00014773,2]
[354140101,1740281445118,-251.51484246,0.00014773,2]
[354140103,1740281445127,-3000.0,0.00014773,2]
[354140105,1740281445136,-81110.25816278,0.000148,2]
[354140107,1740281445147,-596.67,0.00014819,2]
[354140109,1740281445156,-500.0,0.00014819,2]
[354140111,1740281445165,-667.28,0.00014819,2]
[354140113,1740281445175,-1292.2,0.00014819,2]
[354140115,1740281445184,-647.96,0.00014819,2]
[354140117,1740281445194,-500.0,0.00014819,2]
[354140119,1740281445203,-503.74,0.00014819,2]
[354140121,1740281445212,-500.0,0.00014819,2]
[354140123,1740281445222,-497.9831486,0.00014819,2]
[354140125,1740281445233,-500.0,0.00014819,2]
[354140127,1740281445242,-500.0,0.00014819,2]
[354140129,1740281445252,-518.85,0.00014819,2]
[354140131,1740281445261,-1175.31,0.00014819,2]
[354140133,1740281445271,-500.0,0.00014819,2]
[354140135,1740281445280,-500.0,0.00014819,2]
[354140137,1740281445290,-904.02,0.00014819,2]
[354140139,1740281445299,-1517.95,0.00014819,2]
[354140141,1740281445309,-8914.43,0.00014819,2]
[354140143,1740281445319,-500.0,0.0001482,2]
[354140145,1740281445327,-500.0,0.0001482,2]
[354140147,1740281445337,-567.84,0.0001482,2]
[354140149,1740281445346,-500.0,0.0001482,2]
[354140151,1740281445355,-500.0,0.0001482,2]
[354140153,1740281445365,-500.0,0.0001482,2]
[354140155,1740281445374,-500.0,0.0001482,2]
[354140157,1740281445385,-3525.04,0.0001482,2]
[354140159,1740281445395,-500.0,0.0001482,2]
[354140161,1740281445405,-1753.25,0.0001482,2]
[354140163,1740281445414,-500.0,0.0001482,2]
[354140165,1740281445423,-858.12,0.00014821,2]
[354140167,1740281445433,-180.42950727,0.00014821,2]
[354140169,1740281445443,-500.0,0.00014821,2]
[354140172,1740281445454,-151.0,0.0001484,2]
[354140173,1740281445464,-204.416767,0.0001484,2]
[354140176,1740281445473,-243545.85855076,0.0001485,5]
[354140190,1740281445599,-500.0,0.00014326,2]